bitfinex-derivatives/quotes_ETHF0:USTF0_20250621
["timestamp","ask_amount","ask_price","bid_price","bid_amount"]
[1750478717129,2.0241,2426.4,2426.3,1.23632]
[1750478718730,25.5796,2426.4,2426.3,1.23632]
[1750478719429,25.5796,2426.4,2426.3,1.30479599]
[1750478730535,26.81587,2426.4,2426.3,0.06847599]
[1750478730740,30.06387364,2426.4,2426.3,0.06847599]
[1750478732740,36.44087364,2426.4,2426.3,0.06847599]
[1750478733342,38.29528364,2426.4,2425.8,0.6922]
[1750478733641,2.37875826,2425.9,2425.8,1.23657]
[1750478733840,27.30575826,2425.9,2425.8,1.23657]
[1750478734038,27.98525826,2425.9,2425.8,1.23657]
[1750478736239,25.6065,2425.9,2425.8,1.23657]
[1750478749058,26.84302,2425.9,2425.8,1.23657]
[1750478749856,26.84302,2425.9,2425.8,1.30504599]
[1750478752167,25.6065,2425.9,2425.8,1.30504599]
[1750478758270,26.84302,2425.9,2425.8,1.30504599]
[1750478759867,25.6065,2425.9,2425.8,1.30504599]
[1750478760968,26.84302,2425.9,2425.8,1.30504599]
[1750478761872,25.6065,2425.9,2425.8,1.30504599]
[1750478762773,26.84302,2425.9,2425.8,1.30504599]
[1750478763167,1.91602,2425.9,2425.8,1.30504599]
[1750478763475,26.83202,2425.9,2425.8,1.30504599]
[1750478763674,25.5955,2425.9,2425.8,1.30504599]
[1750478765677,26.83202,2425.9,2425.8,1.30504599]
[1750478766175,26.83202,2425.9,2425.8,0.06847599]
[1750478766976,26.83202,2425.9,2425.8,1.30504599]
[1750478767376,29.34205525,2425.9,2425.8,0.06847599]
[1750478767779,29.34204321,2425.9,2425.8,0.06847599]
[1750478768275,29.34206779,2425.9,2425.8,0.06847599]
[1750478768485,28.16492,2425.9,2425.8,1.30504599]
[1750478768681,26.9284,2425.9,2425.8,1.30504599]
[1750478769369,29.34210701,2425.9,2425.8,1.30504599]
[1750478769774,29.34210701,2425.9,2425.8,0.06847599]
[1750478770078,28.16492,2425.9,2425.8,1.30504599]
[1750478770288,29.3421634,2425.9,2425.8,1.30504599]
[1750478772184,29.3421634,2425.9,2425.8,0.06847599]
[1750478774085,28.0092634,2425.9,2425.8,1.30504599]
[1750478774989,26.83202,2425.9,2425.8,1.30504599]
[1750478775387,26.83202,2425.9,2425.8,0.06847599]
[1750478775586,28.00960102,2425.9,2425.8,0.06847599]
[1750478779493,1.23668,2425.6,2425.5,0.6498]
[1750478779786,29.35948,2425.6,2425.5,0.6498]
[1750478780296,30.01048,2425.6,2425.5,0.6498]
[1750478783400,1.23673,2425.5,2425.4,1.23678]
[1750478783603,2.9021583,2425.5,2425.4,1.23678]
[1750478783791,1.23673,2425.5,2425.3,2.30260988]
[1750478783997,24.966,2425.4,2425.3,2.30260988]
[1750478784802,24.966,2425.4,2425.3,1.9367]
[1750478787209,26.20278,2425.4,2425.3,1.9367]
[1750478787803,24.966,2425.4,2425.3,1.9367]
[1750478790410,26.20278,2425.4,2425.3,1.93673]
[1750478790705,24.966,2425.4,2425.3,1.93673]
[1750478791204,26.20278,2425.4,2425.3,1.93673]
[1750478791803,24.966,2425.4,2425.3,1.93673]
[1750478794507,24.966,2425.4,2425.3,2.00520599]
[1750478795909,24.966,2425.4,2425.3,1.30530599]
[1750478796903,26.20278,2425.4,2425.3,1.30530599]
[1750478797103,1.2369,2425.2,2425.0,1.61906338]
[1750478797303,1.23698,2425.0,2424.9,0.6534]
[1750478797499,1.6654283,2425.0,2424.8,0.693]
[1750478797703,0.6724,2424.9,2424.8,1.93008]
[1750478797908,0.6724,2424.9,2424.8,0.693]
[1750478798809,3.2078,2425.5,2424.8,15.14664]
[1750478799003,1.23685,2425.3,2425.0,1.6654283]
[1750478799202,1.23685,2425.3,2425.1,1.2369]
[1750478799414,2.9022683,2425.3,2425.1,1.9102]
[1750478800010,27.8532683,2425.3,2425.1,1.9102]
[1750478800211,1.23688,2425.2,2425.1,0.6733]
[1750478801108,1.23697,2425.1,2424.9,1.23702]
[1750478801307,1.90337,2425.1,2424.9,1.94442]
[1750478801998,1.23698,2425.0,2424.9,0.7074]
[1750478803211,1.2371,2424.8,2424.6,1.23716]
[1750478803415,0.6664,2424.7,2424.6,1.23716]
[1750478803710,0.6664,2424.7,2424.5,3.9152]
[1750478803911,0.6664,2424.7,2424.5,3.2078]
[1750478804106,9.91772388,2424.6,2423.9,1.2375]
[1750478804306,3.2078,2424.2,2423.9,1.9449]
[1750478804913,4.4452,2424.2,2423.9,3.3564]
[1750478806818,1.23744,2424.1,2423.9,3.3564]
[1750478807311,1.23744,2424.1,2423.9,2.1189]
[1750478809518,1.23749,2424.0,2423.9,2.1189]
[1750478809719,1.23748,2424.1,2423.9,2.18737599]
[1750478810721,1.23749,2424.0,2423.9,2.18737599]
[1750478812019,1.23749,2424.0,2423.9,0.77587599]
[1750478815622,1.23747,2424.1,2423.9,2.01341599]
[1750478815920,1.23747,2424.1,2423.9,3.30131599]
[1750478817224,1.23749,2424.0,2423.9,2.06377599]
[1750478817422,1.23749,2424.0,2423.9,0.77587599]
[1750478820923,1.23749,2424.0,2423.9,2.01341599]
[1750478821124,1.23749,2424.0,2423.9,0.77587599]
[1750478821326,0.6943,2424.1,2424.0,1.23749]
[1750478821528,1.93176,2424.1,2423.9,0.77587599]
[1750478821819,1.23749,2424.0,2423.9,0.77587599]
[1750478823328,1.23749,2424.0,2423.9,0.06847599]
[1750478825429,26.92877,2424.1,2423.9,1.30600599]
[1750478825929,1.93177,2424.1,2423.9,1.30600599]
[1750478826129,26.92777,2424.1,2423.9,1.30600599]
[1750478826831,1.93177,2424.1,2423.9,1.30600599]
[1750478827128,26.92477,2424.1,2423.9,1.30600599]
[1750478827921,1.23749,2424.0,2423.9,0.06847599]
[1750478828320,30.60695606,2424.1,2423.9,0.06847599]
[1750478828723,26.9889,2424.1,2423.9,0.06847599]
[1750478829328,26.9889,2424.1,2423.9,1.30601599]
[1750478829830,28.22637,2424.1,2423.9,0.06847599]
[1750478830232,1.23749,2424.0,2423.9,0.06847599]
[1750478830434,28.22638,2424.1,2423.9,0.06847599]
[1750478830625,26.92478,2424.1,2423.9,1.30600599]
[1750478830828,26.92478,2424.1,2423.9,1.94720599]
[1750478831331,1.23749,2424.0,2423.9,0.70967599]
[1750478833235,2.42001642,2424.0,2423.9,0.70967599]
[1750478833638,2.42001642,2424.0,2423.9,1.94721599]
[1750478834136,2.42001642,2424.0,2423.9,0.70967599]
[1750478834435,2.42001642,2424.0,2423.9,0.06847599]
[1750478834636,3.72091642,2424.0,2423.9,0.06847599]
[1750478835538,1.18252642,2424.0,2423.9,1.30601599]
[1750478836531,26.15952642,2424.0,2423.9,1.30601599]
[1750478836733,27.39701642,2424.0,2423.9,0.06847599]
[1750478838642,2.42001642,2424.0,2423.9,0.06847599]
[1750478838940,27.39101642,2424.0,2423.9,0.06847599]
[1750478840544,29.77161248,2424.0,2423.9,0.06847599]
[1750478840842,31.16261248,2424.0,2423.9,0.06847599]
[1750478842442,31.15761248,2424.0,2423.9,0.06847599]
[1750478842638,34.92012248,2424.0,2423.2,13.68584408]
[1750478842843,26.15752642,2423.9,2423.8,1.2376]
[1750478843438,27.39506642,2423.9,2423.8,1.2376]
[1750478843632,1.23759,2423.8,2423.6,2.57146]
[1750478844042,1.93699,2423.8,2423.6,2.57146]
[1750478844243,1.93699,2423.8,2423.7,1.23765]
[1750478844639,0.6994,2423.8,2423.7,1.23765]
[1750478847046,0.6994,2423.8,2423.6,1.3338]
[1750478847047,1.93699,2423.8,2423.6,2.57146]
[1750478847544,1.93699,2423.8,2423.7,1.23765]
[1750478848439,1.93699,2423.8,2423.6,2.57146]
[1750478849846,0.6994,2423.8,2423.7,1.23765]
[1750478850048,1.93699,2423.8,2423.6,2.57146]
[1750478851347,1.23765,2423.7,2423.6,2.57146]
[1750478851651,1.23765,2423.7,2423.6,1.3338]
[1750478852548,1.23773,2423.6,2423.4,1.23779]
[1750478852843,1.23775,2423.5,2423.3,2.57423]
[1750478853040,1.23775,2423.5,2423.3,1.23783]
[1750478853245,1.23775,2423.5,2423.3,1.92013]
[1750478853445,1.94495,2423.5,2423.3,1.92013]
[1750478853644,1.94495,2423.5,2423.4,1.2378]
[1750478854153,1.94495,2423.5,2423.3,1.92014]
[1750478854542,1.94495,2423.5,2423.4,1.2378]
[1750478854846,0.7072,2423.5,2423.4,1.2378]
[1750478855548,1.94495,2423.5,2423.3,1.92012]
[1750478856055,1.2378,2423.4,2423.3,0.6823]
[1750478856444,4.4456,2423.4,2423.3,0.6823]
[1750478857047,1.2378,2423.4,2423.3,0.6823]
[1750478857347,38.1724986,2423.4,2422.9,0.37126406]
[1750478857651,1.2379,2423.2,2423.0,1.91747]
[1750478858650,1.23788,2423.3,2423.0,1.91747]
[1750478859152,3.2078,2423.1,2422.9,1.04857761]
[1750478859452,1.238,2423.0,2422.9,1.04857761]
[1750478859749,26.25397,2423.1,2422.9,2.28662761]
[1750478860250,1.238,2423.0,2422.9,1.04857761]
[1750478860644,26.25399,2423.1,2422.9,1.04857761]
[1750478861449,1.238,2423.0,2422.9,1.04857761]
[1750478861747,1.238,2423.0,2422.9,0.36347761]
[1750478861947,1.238,2423.0,2422.8,1.92298]
[1750478862148,1.23805,2422.9,2422.8,0.6849]
[1750478862350,0.7024,2422.9,2422.8,0.6849]
[1750478862553,0.7024,2422.9,2422.8,1.92301]
[1750478862753,0.7024,2422.9,2422.8,2.28402645]
[1750478863548,3.2078,2423.2,2423.1,1.23795]
[1750478863857,25.011,2423.2,2423.0,1.23797]
[1750478864252,4.44579,2423.1,2422.8,2.27337148]
[1750478864761,3.2078,2423.1,2422.8,1.03530148]
[1750478864950,3.2078,2423.1,2422.9,1.23803]
[1750478865151,4.44577,2423.1,2422.9,1.23803]
[1750478865860,30.62612606,2423.2,2423.0,1.238]
[1750478867556,30.62612606,2423.2,2422.8,1.03530148]
[1750478867557,27.0076,2423.2,2423.1,1.23795]
[1750478867758,6.386,2423.3,2423.2,1.23789]
[1750478867960,25.147,2423.3,2423.2,1.23789]
[1750478868858,25.149,2423.3,2423.2,1.23789]
[1750478869062,26.38685,2423.3,2423.2,1.23789]
[1750478869361,26.38685,2423.3,2423.1,1.92222]
[1750478869852,26.38688,2423.3,2423.1,1.23795]
[1750478870058,0.6553,2423.2,2423.1,1.23795]
[1750478870657,1.8932,2423.2,2423.1,1.23795]
[1750478871259,0.6553,2423.2,2423.1,1.23795]
[1750478872363,1.8932,2423.2,2423.0,1.30644599]
[1750478873063,1.8932,2423.2,2423.1,1.23795]
[1750478874059,0.6553,2423.2,2423.1,1.23795]
[1750478881168,1.8932,2423.2,2423.1,1.23795]
[1750478881369,27.0052,2423.2,2423.1,1.23795]
[1750478881666,25.7673,2423.2,2423.1,1.23795]
[1750478883170,27.0052,2423.2,2423.1,1.23795]
[1750478883370,25.7673,2423.2,2423.0,1.30644599]
[1750478883666,27.00524,2423.2,2423.0,1.30644599]
[1750478884471,27.00524,2423.2,2423.1,1.23795]
[1750478884672,25.7673,2423.2,2423.1,1.23795]
[1750478885867,0.6553,2423.2,2423.1,1.30642599]
[1750478886070,25.098,2423.2,2423.1,1.30639599]
[1750478886672,26.28361684,2423.2,2423.1,1.30639599]
[1750478889163,27.52151684,2423.2,2423.1,0.06847599]
[1750478891166,27.52151684,2423.2,2423.1,1.30642599]
[1750478892477,27.52151684,2423.2,2423.1,0.06847599]
[1750478892669,29.9021129,2423.2,2423.1,0.06847599]
[1750478895674,2.42351684,2423.2,2423.1,0.06847599]
[1750478895878,26.25861684,2423.2,2423.1,1.30642599]
[1750478896376,27.49651684,2423.2,2423.1,1.30642599]
[1750478896777,1.18561684,2423.2,2423.1,1.30642599]
[1750478896978,27.49651684,2423.2,2423.1,1.30642599]
[1750478897167,26.25861684,2423.2,2423.1,1.30642599]
[1750478897678,27.49651684,2423.2,2423.1,0.06847599]
[1750478897979,29.8771129,2423.2,2423.1,0.06847599]
[1750478901080,31.2732129,2423.2,2423.1,0.06847599]
[1750478901887,31.9521129,2423.2,2423.1,0.06847599]
[1750478902275,30.7142129,2423.2,2422.7,0.7086]
[1750478902575,6.82648606,2422.9,2422.7,1.94676]
[1750478902772,31.88348606,2422.9,2422.7,1.94676]
[1750478902976,31.88348606,2422.9,2422.7,2.30203863]
[1750478903380,28.67568606,2422.9,2422.7,2.30203863]
[1750478904583,1.23811,2422.8,2422.7,2.30203863]
[1750478904786,1.23811,2422.8,2422.7,1.06387863]
[1750478904983,31.88348606,2422.9,2422.7,2.30203863]
[1750478906184,1.23811,2422.8,2422.7,0.35527863]
[1750478906377,1.23811,2422.8,2422.6,1.23819]
[1750478906578,0.6781,2422.7,2422.6,1.23819]
[1750478906780,3.2078,2422.9,2422.8,1.23811]
[1750478906980,25.049,2422.9,2422.8,1.23811]
[1750478909279,25.049,2422.9,2422.7,0.36453261]
[1750478909484,1.23811,2422.8,2422.5,3.8776]
[1750478909687,2.56221,2422.8,2422.6,1.23817]
[1750478909887,29.33977606,2422.7,2422.5,0.6698]
[1750478910184,29.33977606,2422.7,2422.5,1.23822]
[1750478910581,29.33977606,2422.7,2422.5,1.23824]
[1750478910887,30.72407606,2422.7,2422.5,1.23824]
[1750478911579,1.23827,2422.5,2422.3,1.58857831]
[1750478911779,0.7102,2422.4,2422.3,1.58857831]
[1750478913100,0.7102,2422.4,2422.3,1.23836]
[1750478913896,28.2468,2422.6,2422.5,1.23826]
[1750478914283,3.2078,2422.6,2422.5,1.23826]
[1750478915280,3.2078,2422.6,2422.5,1.30673599]
[1750478916588,3.2078,2422.6,2422.5,1.97913599]
[1750478917488,0.6877,2422.8,2422.7,1.23816]
[1750478917690,25.7207,2422.8,2422.7,1.23816]
[1750478919087,25.7207,2422.8,2422.6,1.23817]
[1750478919479,0.6877,2422.8,2422.6,1.23817]
[1750478919679,25.7197,2422.8,2422.6,1.23817]
[1750478919988,25.7197,2422.8,2422.7,1.23816]
[1750478920481,26.95781,2422.8,2422.7,1.23816]
[1750478920983,25.7137,2422.8,2422.7,1.23816]
[1750478921289,25.026,2422.8,2422.7,1.23816]
[1750478925982,3.8793,2422.9,2422.6,0.6882]
[1750478925983,3.8793,2422.9,2422.8,1.23811]
[1750478926286,28.8943,2422.9,2422.8,1.23811]
[1750478926483,3.2078,2423.2,2422.7,5.47598606]
[1750478926680,3.2078,2423.2,2422.7,3.76109606]
[1750478926880,28.2258,2423.2,2423.1,1.23795]
[1750478927083,29.40906025,2423.2,2423.1,1.23795]
[1750478928086,30.64696025,2423.2,2423.0,1.23797]
[1750478928290,29.4637,2423.2,2423.0,1.23797]
[1750478928489,28.2258,2423.2,2423.1,1.23795]
[1750478928689,29.40927502,2423.2,2422.8,0.6567]
[1750478928889,28.2258,2423.2,2423.1,1.23795]
[1750478929192,29.40927587,2423.2,2423.1,1.23795]
[1750478929889,29.40927587,2423.2,2422.8,2.0529]
[1750478930097,28.2258,2423.2,2422.8,2.0529]
[1750478930585,28.2258,2423.2,2422.8,2.12137599]
[1750478930791,28.2258,2423.2,2423.1,1.23795]
[1750478930990,29.40947723,2423.2,2423.1,1.23795]
[1750478931189,30.64737723,2423.2,2423.0,1.23797]
[1750478931393,28.2258,2423.2,2423.1,1.23795]
[1750478931692,29.40949366,2423.2,2423.1,1.23795]
[1750478931892,26.20169366,2423.2,2423.1,1.23795]
[1750478933699,1.18369366,2423.2,2423.1,1.23795]
[1750478933993,26.18869366,2423.2,2423.1,1.23795]
[1750478935389,13.43619606,2423.4,2422.8,2.12137599]
[1750478935593,26.18430605,2423.3,2423.2,1.2379]
[1750478935990,26.18430605,2423.3,2423.0,0.6532]
[1750478936190,25.001,2423.3,2423.0,0.6532]
[1750478936389,25.001,2423.3,2423.2,1.2379]
[1750478936591,26.18399123,2423.3,2423.2,1.2379]
[1750478937599,25.001,2423.3,2423.2,1.2379]
[1750478937803,25.679,2423.3,2423.2,1.2379]
[1750478938000,25.676,2423.3,2423.2,1.2379]
[1750478938501,26.85876812,2423.3,2423.2,1.2379]
[1750478938798,25.676,2423.3,2423.2,1.2379]
[1750478940397,3.2078,2423.4,2423.3,1.23785]
[1750478940600,28.1998,2423.4,2423.3,1.23785]
[1750478941007,3.2078,2423.4,2423.3,1.23785]
[1750478941300,0.6973,2423.5,2423.4,1.2378]
[1750478942200,6.25959606,2423.8,2423.3,3.2078]
[1750478942399,0.6613,2423.7,2423.6,1.23769]
[1750478950805,0.6613,2423.7,2423.6,1.58206744]
[1750478954114,4.27956606,2423.7,2423.3,3.27627599]
[1750478954320,5.57726606,2423.7,2423.5,1.23773]
[1750478954617,1.2977,2423.6,2423.5,1.23773]
[1750478957722,3.04189606,2423.7,2423.6,1.2377]
[1750478958118,0.6613,2423.7,2423.6,1.2377]
[1750478958317,25.6383,2423.7,2423.6,1.2377]
[1750478959513,0.6613,2423.7,2423.5,1.23772]
[1750478959823,2.0347,2423.7,2423.5,1.23772]
[1750478960120,5.65294606,2423.7,2423.5,1.23771]
[1750478960618,4.41529606,2423.7,2423.6,1.2377]
[1750478961414,2.0347,2423.7,2423.6,1.2377]
[1750478961614,0.6613,2423.7,2423.6,1.2377]
[1750478963113,1.89895,2423.7,2423.6,1.2377]
[1750478963314,1.89895,2423.7,2423.5,0.06847599]
[1750478963315,5.67284606,2423.7,2423.5,1.30618599]
[1750478964424,5.67284606,2423.7,2423.6,1.2377]
[1750478966125,4.43519606,2423.7,2423.6,1.2377]
[1750478966721,2.0546,2423.7,2423.6,1.2377]
[1750478966921,0.6613,2423.7,2423.6,1.2377]
[1750478967618,1.89895,2423.7,2423.6,1.2377]
[1750478969624,3.08304369,2423.7,2423.6,1.2377]
[1750478970527,1.84539369,2423.7,2423.6,1.2377]
[1750478970722,4.47274369,2423.7,2423.6,1.2377]
[1750478973324,6.85333975,2423.7,2423.5,1.30619599]
[1750478973521,2.56789369,2423.6,2423.5,1.30619599]
[1750478974123,2.56789369,2423.6,2423.5,1.23772]
[1750478974321,1.3838,2423.6,2423.5,1.23772]
[1750478974520,1.18192598,2423.6,2423.5,1.23772]
[1750478974720,4.27954606,2423.7,2423.5,1.23772]
[1750478974920,4.27954606,2423.7,2423.6,1.2377]
[1750478975125,5.46151606,2423.7,2423.6,1.30617599]
[1750478975919,5.46151606,2423.7,2423.6,0.06847599]
[1750478976826,6.77231606,2423.7,2423.6,0.06847599]
[1750478977927,6.77231606,2423.7,2423.6,1.30617599]
[1750478978126,5.53466606,2423.7,2423.6,1.30617599]
[1750478978624,3.15407,2423.7,2423.6,1.30617599]
[1750478979229,4.39172,2423.7,2423.6,1.30617599]
[1750478979724,3.15407,2423.7,2423.6,1.30617599]
[1750478980817,1.84327,2423.7,2423.6,1.30617599]
[1750478981625,26.81827,2423.7,2423.6,1.30617599]
[1750478991829,1.84327,2423.7,2423.6,1.30617599]
[1750478997946,28.1808,2424.1,2424.0,1.23749]
[1750478998140,30.05914,2424.1,2423.9,1.23751]
[1750478998536,28.8217,2424.1,2424.0,1.23749]
[1750479000537,3.8487,2424.1,2424.0,1.23749]
[1750479000737,28.8207,2424.1,2424.0,1.23749]
[1750479001340,3.2078,2424.4,2424.3,1.23734]
[1750479001640,0.6832,2424.5,2424.4,1.23729]
[1750479001843,2.38059606,2424.6,2424.5,1.23724]
[1750479002032,0.6832,2424.6,2424.5,1.23724]
[1750479002343,3.2078,2424.7,2424.6,1.23719]
[1750479002544,28.1788,2424.7,2424.6,1.23719]
[1750479004544,30.55939606,2424.7,2424.6,1.23719]
[1750479004745,30.55739606,2424.7,2424.6,1.23719]
[1750479012051,2.38059606,2424.7,2424.6,1.23719]
[1750479012242,27.34559606,2424.7,2424.6,1.23719]
[1750479013845,28.63679606,2424.7,2424.6,1.23719]
[1750479016051,29.87393606,2424.7,2424.6,1.23719]
[1750479017655,29.87393606,2424.7,2424.5,1.23721]
[1750479018152,29.87393606,2424.7,2424.6,1.23719]
[1750479020556,27.49334,2424.7,2424.6,1.23719]
[1750479020751,29.87393606,2424.7,2424.6,1.30566599]
[1750479022057,28.63679606,2424.7,2424.6,1.30566599]
[1750479022659,29.87393606,2424.7,2424.6,1.30566599]
[1750479027367,3.61773606,2424.7,2424.6,1.30566599]
[1750479027669,28.57773606,2424.7,2424.6,1.30566599]
[1750479028064,29.96073606,2424.7,2424.6,1.30566599]
[1750479029168,31.1351626,2424.7,2424.6,1.30566599]
[1750479030760,30.42194479,2424.7,2424.6,1.30566599]
[1750479034472,30.42194479,2424.7,2424.6,0.06847599]
[1750479034969,30.42194479,2424.7,2424.6,1.30566599]
[1750479035172,30.42194479,2424.7,2424.6,0.06847599]
[1750479035361,30.42194479,2424.7,2424.6,1.30566599]
[1750479038270,26.62537825,2424.7,2424.6,1.30566599]
[1750479038468,24.958,2424.7,2424.6,1.30566599]
[1750479043982,2.35057825,2424.8,2424.7,1.23714]
[1750479044182,27.30657825,2424.8,2424.7,1.23714]
[1750479047978,0.6832,2424.8,2424.7,1.94454]
[1750479048183,25.6382,2424.8,2424.7,1.94454]
[1750479048576,0.6832,2424.8,2424.7,1.94454]
[1750479048782,4.87517825,2424.9,2424.8,1.23708]
[1750479048981,27.32907825,2424.9,2424.8,1.23708]
[1750479050586,2.37507825,2424.9,2424.8,1.23708]
[1750479050884,27.32907825,2424.9,2424.8,1.23708]
[1750479052083,2.37507825,2424.9,2424.8,1.23708]
[1750479052285,27.32807825,2424.9,2424.8,1.23708]
[1750479058493,27.32607825,2424.9,2424.8,1.23708]
[1750479061196,2.37507825,2424.9,2424.8,1.23708]
[1750479061498,28.56210825,2424.9,2424.8,1.23708]
[1750479061689,28.56210825,2424.9,2424.7,2.01297599]
[1750479062195,1.23708,2424.8,2424.7,0.77587599]
[1750479062381,1.23708,2424.8,2424.7,0.06847599]
[1750479062587,2.90445825,2424.8,2424.7,0.06847599]
[1750479062787,4.93555825,2424.8,2424.7,0.06847599]
[1750479063088,4.43811531,2424.8,2424.7,0.06847599]
[1750479063595,3.26818,2424.8,2424.7,0.06847599]
[1750479064393,1.23714,2424.7,2424.5,1.23723]
[1750479064593,26.61737825,2424.6,2424.5,1.23723]
[1750479064792,27.26597825,2424.6,2424.5,1.23723]
[1750479065594,28.59557825,2424.6,2424.5,1.23723]
[1750479068505,43.18137825,2424.6,2423.9,3.2078]
[1750479068798,43.18137825,2424.6,2423.9,1.23751]
[1750479068799,2.90479825,2424.2,2423.9,1.23751]
[1750479068992,26.87384,2424.1,2423.9,1.23751]
[1750479069189,26.87385,2424.1,2423.9,1.23751]
[1750479069592,3.33595,2424.1,2423.9,1.23751]
[1750479069801,26.61637825,2424.0,2423.9,1.23751]
[1750479070101,26.61637825,2424.0,2423.8,0.34652189]
[1750479070402,24.949,2423.9,2423.8,1.2376]
[1750479070598,24.949,2424.1,2424.0,1.23749]
[1750479071298,24.949,2424.1,2423.9,1.23752]
[1750479071299,28.56887406,2424.1,2423.9,1.23752]
[1750479071494,29.97997406,2424.1,2423.9,1.23752]
[1750479073601,26.3601,2424.1,2424.0,1.23749]
[1750479079605,26.3601,2424.1,2424.0,1.30596599]
[1750479082707,1.4111,2424.1,2424.0,1.30596599]
[1750479082912,26.3631,2424.1,2424.0,1.30596599]
[1750479083711,1.4111,2424.1,2424.0,1.30596599]
[1750479083912,26.3631,2424.1,2424.0,1.30596599]
[1750479084213,26.3631,2424.1,2424.0,0.06847599]
[1750479084414,24.952,2424.1,2424.0,0.06847599]
[1750479085315,1.92542,2424.2,2424.0,0.06847599]
[1750479085512,24.952,2424.1,2424.0,0.06847599]
[1750479085910,26.18944,2424.1,2424.0,0.06847599]
[1750479091524,26.18944,2424.1,2424.0,1.30596599]
[1750479091525,24.952,2424.1,2424.0,1.30596599]
[1750479092313,26.18944,2424.1,2424.0,0.06847599]
[1750479092716,26.18944,2424.1,2424.0,0.72847599]
[1750479093620,24.952,2424.1,2424.0,1.96596599]
[1750479094527,26.18944,2424.1,2424.0,1.96596599]
[1750479095027,26.18944,2424.1,2424.0,0.72847599]
[1750479097332,0.688,2424.2,2424.0,0.72847599]
[1750479097523,24.951,2424.1,2424.0,1.96596599]
[1750479099132,1.9254,2424.2,2424.0,1.96596599]
[1750479099433,24.951,2424.1,2424.0,1.96596599]
[1750479099729,1.9254,2424.2,2424.0,1.96596599]
[1750479099935,24.951,2424.1,2424.0,1.96596599]
[1750479100436,24.951,2424.1,2424.0,3.63387003]
[1750479100629,0.688,2424.2,2424.1,1.23744]
[1750479100835,24.951,2424.2,2424.1,1.23744]
[1750479101536,24.951,2424.2,2424.0,4.94684003]
[1750479101938,26.18839,2424.2,2424.0,4.94684003]
[1750479104739,26.18839,2424.2,2424.0,3.70938003]
[1750479105935,26.18839,2424.2,2424.0,2.04147599]
[1750479106327,26.18839,2424.2,2424.0,3.27896599]
[1750479108431,26.18839,2424.2,2424.0,2.04147599]
[1750479108632,26.18839,2424.2,2424.0,3.27896599]
[1750479110341,24.951,2424.2,2424.0,3.27896599]
[1750479111543,24.951,2424.2,2424.1,1.23744]
[1750479112340,3.59912404,2424.4,2424.0,2.04147599]
[1750479112542,24.949,2424.3,2424.0,2.04147599]
[1750479112837,24.949,2424.3,2424.2,1.23739]
[1750479113443,26.18635,2424.3,2424.1,1.23741]
[1750479113742,24.949,2424.3,2424.1,1.23741]
[1750479114132,2.36180404,2424.4,2424.2,1.23739]
[1750479114338,25.6419,2424.4,2424.3,1.23734]
[1750479114635,1.86425193,2424.4,2424.1,1.66790404]
[1750479114942,0.6939,2424.4,2424.3,1.23734]
[1750479115142,1.86418923,2424.4,2424.3,1.23734]
[1750479115847,0.6939,2424.4,2424.3,1.23734]
[1750479117042,3.2078,2424.5,2424.1,3.03210404]
[1750479117240,28.1548,2424.5,2424.4,1.23729]
[1750479117640,28.1548,2424.5,2424.4,1.90809]
[1750479120144,3.2078,2424.5,2424.4,1.90809]
[1750479120348,3.2078,2424.5,2424.4,3.28199]
[1750479121352,0.6558,2424.8,2424.7,1.23714]
[1750479121945,0.6558,2424.8,2424.7,1.92514]
[1750479125258,1.89288,2424.8,2424.7,0.688]
[1750479126154,3.56078404,2424.8,2424.6,4.44496]
[1750479126359,3.56078404,2424.8,2424.4,1.30575599]
[1750479126360,1.23721,2424.6,2424.4,1.30575599]
[1750479126553,0.6972,2424.5,2424.4,1.30575599]
[1750479126758,2.0083,2424.5,2424.4,1.30575599]
[1750479128068,2.0083,2424.5,2424.4,0.06847599]
[1750479128362,3.24554,2424.5,2424.4,0.06847599]
[1750479128957,5.62806489,2424.5,2424.4,0.06847599]
[1750479136974,36.94206489,2424.5,2424.4,0.06847599]
[1750479139377,1.93444,2424.5,2424.4,0.06847599]
[1750479139869,26.87644,2424.5,2424.4,0.06847599]
[1750479141873,1.93444,2424.5,2424.4,1.30576599]
[1750479142175,26.87644,2424.5,2424.4,0.06847599]
[1750479142373,26.87644,2424.5,2424.4,1.30576599]
[1750479142573,25.6392,2424.5,2424.4,1.30576599]
[1750479142773,0.6972,2424.5,2424.4,1.30576599]
[1750479142979,25.6382,2424.5,2424.4,1.30576599]
[1750479143574,26.87544,2424.5,2424.4,0.06847599]
[1750479147780,25.6382,2424.5,2424.4,0.06847599]
[1750479148584,26.87544,2424.5,2424.4,0.06847599]
[1750479156085,1.93444,2424.5,2424.4,0.06847599]
[1750479157683,1.23724,2424.5,2424.4,0.06847599]
[1750479168196,1.23724,2424.5,2424.4,3.27627599]
[1750479177003,1.23724,2424.5,2424.4,4.51356599]
[1750479177505,1.23724,2424.5,2424.4,3.27627599]
[1750479181806,1.23724,2424.5,2424.4,4.51356599]
[1750479182004,1.23724,2424.5,2424.4,3.27627599]
[1750479182196,1.23724,2424.5,2424.4,4.51356599]
[1750479182707,26.17322,2424.6,2424.4,4.51356599]
[1750479183605,1.23724,2424.5,2424.4,4.51356599]
[1750479183806,26.17322,2424.6,2424.4,4.51356599]
[1750479184008,1.23724,2424.5,2424.4,3.27627599]
[1750479188414,2.65054,2424.5,2424.4,3.27627599]
[1750479188619,4.31775467,2424.5,2424.4,3.27627599]
[1750479189513,2.65054,2424.5,2424.4,3.27627599]
[1750479189912,2.65054,2424.5,2424.4,0.06847599]
[1750479190114,2.65054,2424.5,2424.4,3.27627599]
[1750479193715,3.82275612,2424.5,2424.4,3.27627599]
[1750479193910,2.65054,2424.5,2424.4,0.06847599]
[1750479194118,3.82274455,2424.5,2424.4,0.06847599]
[1750479196519,5.48995922,2424.5,2424.4,0.06847599]
[1750479199629,30.41995922,2424.5,2424.4,0.06847599]
[1750479200927,31.13509633,2424.5,2424.4,0.06847599]
[1750479209645,2.40944455,2424.5,2424.4,0.06847599]